[Event "Titled Tuesday Blitz July 25 Early 2023"]
[White "Shuvalova, Polina"]
[Black "Rietze, Clemens, Dr."]
[WhiteFideId "24171760"]
[BlackFideId "24620351"]
[WhiteElo "2663"]
[BlackElo "2465"]
[Result "1/2-1/2"]
[Round "8"]
[TimeControl "180+2"]
[Date "2023.07.25"]
[WhiteClock "0:00:05"]
[BlackClock "0:00:10"]
[Board "77"]

1. e4 {[%clk 0:03:00]}  c5 {[%clk 0:02:59]} 2. f4 {[%clk 0:02:56]}  Nc6 {[%clk 0:02:59]} 3. Nf3 {[%clk 0:02:57]}  g6 {[%clk 0:02:58]} 4. Bc4 {[%clk 0:02:55]}  Bg7 {[%clk 0:02:57]} 5. O-O {[%clk 0:02:54]}  e6 {[%clk 0:02:57]} 6. d3 {[%clk 0:02:53]}  Nge7 {[%clk 0:02:57]} 7. a3 {[%clk 0:02:51]}  O-O {[%clk 0:02:53]} 8. Ba2 {[%clk 0:02:51]}  d5 {[%clk 0:02:48]} 9. e5 {[%clk 0:02:49]}  Nf5 {[%clk 0:02:43]} 10. c3 {[%clk 0:02:47]}  b5 {[%clk 0:02:35]} 11. Qe1 {[%clk 0:02:43]}  d4 {[%clk 0:02:24]} 12. c4 {[%clk 0:02:32]}  b4 {[%clk 0:02:12]} 13. g4 {[%clk 0:02:22]}  Ne3 {[%clk 0:02:08]} 14. Bxe3 {[%clk 0:02:21]}  dxe3 {[%clk 0:02:09]} 15. Qxe3 {[%clk 0:02:22]}  Bb7 {[%clk 0:01:38]} 16. Nbd2 {[%clk 0:02:21]}  f5 {[%clk 0:01:30]} 17. g5 {[%clk 0:02:04]}  Qd7 {[%clk 0:01:25]} 18. Rad1 {[%clk 0:02:01]}  Rfd8 {[%clk 0:01:24]} 19. Bb1 {[%clk 0:02:00]}  bxa3 {[%clk 0:01:15]} 20. bxa3 {[%clk 0:01:59]}  Nd4 {[%clk 0:01:15]} 21. Nxd4 {[%clk 0:01:58]}  cxd4 {[%clk 0:01:13]} 22. Qg3 {[%clk 0:01:54]}  Bf8 {[%clk 0:01:11]} 23. Bc2 {[%clk 0:01:43]}  Bxa3 {[%clk 0:01:03]} 24. Rb1 {[%clk 0:01:43]}  a5 {[%clk 0:00:56]} 25. Ba4 {[%clk 0:01:37]}  Qxa4 {[%clk 0:00:37]} 26. Rxb7 {[%clk 0:01:36]}  Rd7 {[%clk 0:00:35]} 27. Qf3 {[%clk 0:01:28]}  Rad8 {[%clk 0:00:33]} 28. Rxd7 {[%clk 0:01:17]}  Qxd7 {[%clk 0:00:22]} 29. Rb1 {[%clk 0:00:54]}  Bb4 {[%clk 0:00:20]} 30. Nf1 {[%clk 0:00:54]}  Rb8 {[%clk 0:00:20]} 31. h4 {[%clk 0:00:44]}  Qb7 {[%clk 0:00:19]} 32. Qf2 {[%clk 0:00:41]}  Qc6 {[%clk 0:00:18]} 33. h5 {[%clk 0:00:33]}  a4 {[%clk 0:00:18]} 34. hxg6 {[%clk 0:00:32]}  hxg6 {[%clk 0:00:19]} 35. Qh2 {[%clk 0:00:29]}  a3 {[%clk 0:00:14]} 36. Qh6 {[%clk 0:00:27]}  Qe8 {[%clk 0:00:14]} 37. Ng3 {[%clk 0:00:21]}  Qf7 {[%clk 0:00:14]} 38. Ne2 {[%clk 0:00:19]}  Qg7 {[%clk 0:00:13]} 39. Qxg7+ {[%clk 0:00:15]}  Kxg7 {[%clk 0:00:14]} 40. Nxd4 {[%clk 0:00:12]}  a2 {[%clk 0:00:14]} 41. Nxe6+ {[%clk 0:00:10]}  Kf7 {[%clk 0:00:14]} 42. Ra1 {[%clk 0:00:10]}  Kxe6 {[%clk 0:00:14]} 43. Rxa2 {[%clk 0:00:11]}  Bc5+ {[%clk 0:00:12]} 44. Kg2 {[%clk 0:00:11]}  Be3 {[%clk 0:00:12]} 45. Kf3 {[%clk 0:00:11]}  Bd4 {[%clk 0:00:11]} 46. Ra6+ {[%clk 0:00:11]}  Rb6 {[%clk 0:00:11]} 47. Ra8 {[%clk 0:00:11]}  Rb1 {[%clk 0:00:11]} 48. Re8+ {[%clk 0:00:11]}  Kf7 {[%clk 0:00:11]} 49. Rd8 {[%clk 0:00:11]}  Rf1+ {[%clk 0:00:10]} 50. Kg3 {[%clk 0:00:05]}  Be3 {[%clk 0:00:11]} 51. Rd7+ {[%clk 0:00:05]}  Kf8 {[%clk 0:00:10]} 52. d4 {[%clk 0:00:05]}  Bxf4+ {[%clk 0:00:09]} 53. Kg2 {[%clk 0:00:05]}  Rc1 {[%clk 0:00:10]} 54. c5 {[%clk 0:00:05]}  Rc4 {[%clk 0:00:10]} 55. e6 {[%clk 0:00:04]}  Bxg5 {[%clk 0:00:09]} 56. Kf3 {[%clk 0:00:03]}  Ke8 {[%clk 0:00:08]} 57. Ke2 {[%clk 0:00:03]}  Bf6 {[%clk 0:00:08]} 58. Kd3 {[%clk 0:00:03]}  Rc1 {[%clk 0:00:08]} 59. Rf7 {[%clk 0:00:01]}  Rd1+ {[%clk 0:00:07]} 60. Ke2 {[%clk 0:00:01]}  Rxd4 {[%clk 0:00:07]} 61. Rxf6 {[%clk 0:00:02]}  Ke7 {[%clk 0:00:06]} 62. Rxg6 {[%clk 0:00:02]}  Re4+ {[%clk 0:00:07]} 63. Kf3 {[%clk 0:00:02]}  Rxe6 {[%clk 0:00:08]} 64. Rxe6+ {[%clk 0:00:03]}  Kxe6 {[%clk 0:00:08]} 65. Kf4 {[%clk 0:00:04]}  Kd5 {[%clk 0:00:09]} 66. Kxf5 {[%clk 0:00:05]}  Kxc5 {[%clk 0:00:10]} 1/2-1/2


[Site "https://www.chess.com"]

[Event "Titled Tuesday Blitz July 25 Early 2023"]
[White "ArtemDyachuk"]
[Black "ZugZwang1201"]
[WhiteElo "2606"]
[BlackElo "2445"]
[Result "1-0"]
[Round "8"]
[TimeControl "180+2"]
[Date "2023.07.25"]
[WhiteClock "0:00:16"]
[BlackClock "0:00:05"]
[Board "82"]

1. e4 {[%clk 0:03:00]}  c5 {[%clk 0:03:00]} 2. Nf3 {[%clk 0:03:00]}  e6 {[%clk 0:03:00]} 3. d4 {[%clk 0:03:00]}  cxd4 {[%clk 0:03:01]} 4. Nxd4 {[%clk 0:03:00]}  a6 {[%clk 0:03:01]} 5. c4 {[%clk 0:03:00]}  Qc7 {[%clk 0:03:02]} 6. Nc3 {[%clk 0:02:58]}  Nf6 {[%clk 0:03:02]} 7. Be2 {[%clk 0:02:56]}  Be7 {[%clk 0:03:02]} 8. O-O {[%clk 0:02:55]}  h5 {[%clk 0:03:02]} 9. h3 {[%clk 0:02:48]}  d6 {[%clk 0:03:02]} 10. b3 {[%clk 0:02:42]}  b5 {[%clk 0:02:57]} 11. Bb2 {[%clk 0:02:41]}  b4 {[%clk 0:02:57]} 12. Na4 {[%clk 0:02:39]}  Nxe4 {[%clk 0:02:52]} 13. Bf3 {[%clk 0:02:38]}  Bb7 {[%clk 0:02:52]} 14. Qe2 {[%clk 0:02:29]}  Nf6 {[%clk 0:02:50]} 15. Rfe1 {[%clk 0:02:28]}  Nbd7 {[%clk 0:02:37]} 16. Rac1 {[%clk 0:02:20]}  Bxf3 {[%clk 0:02:12]} 17. Qxf3 {[%clk 0:02:20]}  O-O {[%clk 0:02:12]} 18. Rcd1 {[%clk 0:02:11]}  Rfe8 {[%clk 0:02:07]} 19. Ne2 {[%clk 0:01:54]}  Nc5 {[%clk 0:01:59]} 20. Nxc5 {[%clk 0:01:52]}  dxc5 {[%clk 0:02:00]} 21. Nf4 {[%clk 0:01:51]}  h4 {[%clk 0:01:47]} 22. Be5 {[%clk 0:01:49]}  Qa5 {[%clk 0:01:44]} 23. Rd2 {[%clk 0:01:20]}  Rad8 {[%clk 0:01:43]} 24. Red1 {[%clk 0:01:18]}  Rxd2 {[%clk 0:01:43]} 25. Rxd2 {[%clk 0:01:19]}  Rd8 {[%clk 0:01:44]} 26. Rxd8+ {[%clk 0:01:17]}  Qxd8 {[%clk 0:01:38]} 27. Qb7 {[%clk 0:01:10]}  a5 {[%clk 0:01:29]} 28. Kh2 {[%clk 0:01:09]}  g5 {[%clk 0:00:57]} 29. Nd3 {[%clk 0:00:49]}  Ne8 {[%clk 0:00:11]} 30. Qe4 {[%clk 0:00:41]}  Bd6 {[%clk 0:00:11]} 31. f4 {[%clk 0:00:39]}  gxf4 {[%clk 0:00:07]} 32. Qxf4 {[%clk 0:00:34]}  Bxe5 {[%clk 0:00:06]} 33. Nxe5 {[%clk 0:00:33]}  Qc7 {[%clk 0:00:05]} 34. Kh1 {[%clk 0:00:29]}  Kf8 {[%clk 0:00:03]} 35. Ng6+ {[%clk 0:00:26]}  Kg7 {[%clk 0:00:03]} 36. Ne5 {[%clk 0:00:27]}  Kf8 {[%clk 0:00:02]} 37. Qh6+ {[%clk 0:00:26]}  Ke7 {[%clk 0:00:03]} 38. Qxh4+ {[%clk 0:00:24]}  Kf8 {[%clk 0:00:01]} 39. Qg3 {[%clk 0:00:18]}  Ke7 {[%clk 0:00:01]} 40. h4 {[%clk 0:00:17]}  Kf8 {[%clk 0:00:01]} 41. h5 {[%clk 0:00:17]}  Ke7 {[%clk 0:00:02]} 42. h6 {[%clk 0:00:16]}  f6 {[%clk 0:00:03]} 43. Ng6+ {[%clk 0:00:15]}  Kf7 {[%clk 0:00:03]} 44. Qxc7+ {[%clk 0:00:15]}  Nxc7 {[%clk 0:00:04]} 45. h7 {[%clk 0:00:15]}  Kg7 {[%clk 0:00:05]} 46. h8=Q+ {[%clk 0:00:16]}  Kxg6 {[%clk 0:00:05]} 47. Qc8 {[%clk 0:00:16]}  Kf5 {[%clk 0:00:05]} 48. Qxc7 {[%clk 0:00:16]} 1-0


[Site "https://www.chess.com"]

[Event "Titled Tuesday Blitz July 25 Early 2023"]
[White "Al-Tarboush, Ward"]
[Black "Marn, Jan"]
[WhiteFideId "7601450"]
[BlackFideId "14619245"]
[WhiteElo "2585"]
[BlackElo "2428"]
[Result "0-1"]
[Round "8"]
[TimeControl "180+2"]
[Date "2023.07.25"]
[WhiteClock "0:00:48"]
[BlackClock "0:00:10"]
[Board "84"]

1. e4 {[%clk 0:02:39]}  e5 {[%clk 0:02:54]} 2. Nf3 {[%clk 0:02:39]}  Nc6 {[%clk 0:02:55]} 3. Bb5 {[%clk 0:02:39]}  Nge7 {[%clk 0:02:50]} 4. O-O {[%clk 0:02:38]}  Ng6 {[%clk 0:02:50]} 5. c3 {[%clk 0:02:38]}  Be7 {[%clk 0:02:49]} 6. d4 {[%clk 0:02:38]}  O-O {[%clk 0:02:44]} 7. Bxc6 {[%clk 0:02:36]}  dxc6 {[%clk 0:02:43]} 8. dxe5 {[%clk 0:02:36]}  Bg4 {[%clk 0:02:39]} 9. Nbd2 {[%clk 0:02:35]}  Nxe5 {[%clk 0:02:39]} 10. h3 {[%clk 0:02:35]}  Bh5 {[%clk 0:02:20]} 11. g4 {[%clk 0:02:34]}  Nxf3+ {[%clk 0:02:19]} 12. Nxf3 {[%clk 0:02:33]}  Bg6 {[%clk 0:02:20]} 13. Qxd8 {[%clk 0:02:31]}  Raxd8 {[%clk 0:02:21]} 14. Re1 {[%clk 0:02:32]}  Rd3 {[%clk 0:02:17]} 15. Ne5 {[%clk 0:02:30]}  Rxh3 {[%clk 0:02:14]} 16. Kg2 {[%clk 0:02:25]}  Rh4 {[%clk 0:02:14]} 17. Nxg6 {[%clk 0:02:17]}  hxg6 {[%clk 0:01:40]} 18. f3 {[%clk 0:02:12]}  f6 {[%clk 0:01:32]} 19. Bf4 {[%clk 0:02:12]}  Bd6 {[%clk 0:01:27]} 20. Bxd6 {[%clk 0:02:12]}  cxd6 {[%clk 0:01:28]} 21. Rad1 {[%clk 0:02:13]}  Rd8 {[%clk 0:01:28]} 22. Rd2 {[%clk 0:02:14]}  Kf7 {[%clk 0:01:28]} 23. Red1 {[%clk 0:02:12]}  Ke7 {[%clk 0:01:27]} 24. b4 {[%clk 0:02:11]}  g5 {[%clk 0:01:26]} 25. c4 {[%clk 0:02:11]}  Rhh8 {[%clk 0:01:23]} 26. a4 {[%clk 0:02:10]}  Rd7 {[%clk 0:01:21]} 27. Kg3 {[%clk 0:02:07]}  Rhd8 {[%clk 0:01:21]} 28. Rh1 {[%clk 0:02:07]}  d5 {[%clk 0:01:18]} 29. exd5 {[%clk 0:02:08]}  cxd5 {[%clk 0:01:18]} 30. Re1+ {[%clk 0:02:09]}  Kf7 {[%clk 0:01:18]} 31. Red1 {[%clk 0:02:09]}  d4 {[%clk 0:01:16]} 32. Kf2 {[%clk 0:02:02]}  d3 {[%clk 0:01:13]} 33. Rc1 {[%clk 0:01:58]}  Rd4 {[%clk 0:01:04]} 34. Rc3 {[%clk 0:01:58]}  Ke6 {[%clk 0:00:58]} 35. Ke3 {[%clk 0:01:56]}  Rf4 {[%clk 0:00:57]} 36. a5 {[%clk 0:01:49]}  Rdd4 {[%clk 0:00:56]} 37. c5 {[%clk 0:01:46]}  Rxb4 {[%clk 0:00:47]} 38. a6 {[%clk 0:01:47]}  bxa6 {[%clk 0:00:40]} 39. c6 {[%clk 0:01:47]}  Rfc4 {[%clk 0:00:40]} 40. Rdxd3 {[%clk 0:01:46]}  Rxc3 {[%clk 0:00:37]} 41. Rxc3 {[%clk 0:01:46]}  Rb8 {[%clk 0:00:37]} 42. Ra3 {[%clk 0:01:47]}  Rb6 {[%clk 0:00:26]} 43. Rc3 {[%clk 0:01:47]}  Rb8 {[%clk 0:00:26]} 44. Ra3 {[%clk 0:01:45]}  Rc8 {[%clk 0:00:27]} 45. Rxa6 {[%clk 0:01:45]}  Rc7 {[%clk 0:00:27]} 46. Kd4 {[%clk 0:01:43]}  Kd6 {[%clk 0:00:28]} 47. Ke4 {[%clk 0:01:41]}  Kc5 {[%clk 0:00:27]} 48. Kf5 {[%clk 0:01:31]}  Kb5 {[%clk 0:00:28]} 49. Ra1 {[%clk 0:01:30]}  Kxc6 {[%clk 0:00:28]} 50. Kg6 {[%clk 0:01:29]}  Kd5 {[%clk 0:00:23]} 51. Rd1+ {[%clk 0:01:27]}  Ke5 {[%clk 0:00:23]} 52. Ra1 {[%clk 0:01:25]}  Kf4 {[%clk 0:00:23]} 53. Ra3 {[%clk 0:01:23]}  Re7 {[%clk 0:00:17]} 54. Kh7 {[%clk 0:01:20]}  a5 {[%clk 0:00:17]} 55. Kg6 {[%clk 0:01:13]}  Ra7 {[%clk 0:00:16]} 56. Ra4+ {[%clk 0:01:08]}  Kxf3 {[%clk 0:00:16]} 57. Kf5 {[%clk 0:01:09]}  Kg3 {[%clk 0:00:12]} 58. Ra3+ {[%clk 0:01:08]}  Kh4 {[%clk 0:00:13]} 59. Ra4 {[%clk 0:01:08]}  Re7 {[%clk 0:00:11]} 60. Kg6 {[%clk 0:01:05]}  Rb7 {[%clk 0:00:09]} 61. Kf5 {[%clk 0:01:05]}  Rb4 {[%clk 0:00:09]} 62. Ra1 {[%clk 0:01:05]}  a4 {[%clk 0:00:08]} 63. Rh1+ {[%clk 0:01:01]}  Kg3 {[%clk 0:00:08]} 64. Rg1+ {[%clk 0:01:02]}  Kf2 {[%clk 0:00:08]} 65. Ra1 {[%clk 0:01:02]}  Rf4+ {[%clk 0:00:09]} 66. Kg6 {[%clk 0:01:02]}  Rxg4 {[%clk 0:00:10]} 67. Kxg7 {[%clk 0:01:03]}  Rf4 {[%clk 0:00:10]} 68. Kg6 {[%clk 0:01:03]}  g4 {[%clk 0:00:11]} 69. Ra2+ {[%clk 0:01:02]}  Kg1 {[%clk 0:00:09]} 70. Ra1+ {[%clk 0:01:02]}  Kh2 {[%clk 0:00:08]} 71. Ra2+ {[%clk 0:01:02]}  Kh3 {[%clk 0:00:09]} 72. Kh5 {[%clk 0:01:00]}  g3 {[%clk 0:00:09]} 73. Ra3 {[%clk 0:00:58]}  Kh2 {[%clk 0:00:09]} 74. Re3 {[%clk 0:00:48]}  g2 {[%clk 0:00:10]} 0-1


[Site "https://www.chess.com"]

[Event "Titled Tuesday Blitz July 25 Early 2023"]
[White "Vovk, Orest"]
[Black "Omariev, Maksim"]
[WhiteFideId "14113490"]
[BlackFideId "4193423"]
[WhiteElo "2577"]
[BlackElo "2416"]
[Result "0-1"]
[Round "8"]
[TimeControl "180+2"]
[Date "2023.07.25"]
[WhiteClock "0:00:07"]
[BlackClock "0:00:15"]
[Board "85"]

1. g4 {[%clk 0:03:00]}  h5 {[%clk 0:02:57]} 2. g5 {[%clk 0:03:00]}  d5 {[%clk 0:02:56]} 3. Bg2 {[%clk 0:02:58]}  g6 {[%clk 0:02:56]} 4. e4 {[%clk 0:02:56]}  dxe4 {[%clk 0:02:54]} 5. Bxe4 {[%clk 0:02:56]}  Bg7 {[%clk 0:02:54]} 6. Nf3 {[%clk 0:02:55]}  e5 {[%clk 0:02:22]} 7. Nc3 {[%clk 0:02:52]}  Ne7 {[%clk 0:02:22]} 8. d3 {[%clk 0:02:50]}  Nbc6 {[%clk 0:02:22]} 9. Bd2 {[%clk 0:02:44]}  Be6 {[%clk 0:02:12]} 10. Ne2 {[%clk 0:02:30]}  Qd7 {[%clk 0:02:09]} 11. c3 {[%clk 0:02:25]}  O-O {[%clk 0:01:24]} 12. Qc2 {[%clk 0:02:10]}  Rfd8 {[%clk 0:01:21]} 13. O-O-O {[%clk 0:02:08]}  a5 {[%clk 0:01:19]} 14. Kb1 {[%clk 0:02:06]}  Nf5 {[%clk 0:01:06]} 15. Ng3 {[%clk 0:01:32]}  Nd6 {[%clk 0:01:02]} 16. Nh4 {[%clk 0:01:21]}  b5 {[%clk 0:00:41]} 17. Be3 {[%clk 0:01:14]}  a4 {[%clk 0:00:37]} 18. Bc5 {[%clk 0:00:51]}  Ra6 {[%clk 0:00:29]} 19. Ba3 {[%clk 0:00:43]}  Rb8 {[%clk 0:00:25]} 20. Bc5 {[%clk 0:00:38]}  b4 {[%clk 0:00:22]} 21. cxb4 {[%clk 0:00:15]}  Nxb4 {[%clk 0:00:20]} 22. Bxb4 {[%clk 0:00:16]}  Rxb4 {[%clk 0:00:20]} 23. Rc1 {[%clk 0:00:12]}  Nb5 {[%clk 0:00:15]} 24. Bc6 {[%clk 0:00:10]}  Na3+ {[%clk 0:00:14]} 25. Ka1 {[%clk 0:00:09]}  Nxc2+ {[%clk 0:00:15]} 26. Rxc2 {[%clk 0:00:10]}  Rxc6 {[%clk 0:00:16]} 27. Rxc6 {[%clk 0:00:09]}  Qxc6 {[%clk 0:00:17]} 28. Ne4 {[%clk 0:00:07]}  Rxe4 {[%clk 0:00:15]} 0-1


[Site "https://www.chess.com"]

[Event "Titled Tuesday Blitz July 25 Early 2023"]
[White "Harriott, Tyrell"]
[Black "Thecourseoisildur"]
[WhiteFideId "2086484"]
[WhiteElo "2398"]
[BlackElo "2572"]
[Result "1-0"]
[Round "8"]
[TimeControl "180+2"]
[Date "2023.07.25"]
[WhiteClock "0:00:43"]
[BlackClock "0:00:14"]
[Board "86"]

1. d4 {[%clk 0:03:00]}  Nf6 {[%clk 0:02:58]} 2. e3 {[%clk 0:03:01]}  g6 {[%clk 0:02:59]} 3. Bd3 {[%clk 0:03:02]}  Bg7 {[%clk 0:02:59]} 4. f4 {[%clk 0:03:02]}  b6 {[%clk 0:02:58]} 5. Nf3 {[%clk 0:03:02]}  Bb7 {[%clk 0:02:59]} 6. O-O {[%clk 0:03:02]}  O-O {[%clk 0:02:59]} 7. f5 {[%clk 0:03:03]}  d6 {[%clk 0:02:55]} 8. Qe1 {[%clk 0:03:02]}  Bxf3 {[%clk 0:02:50]} 9. Rxf3 {[%clk 0:03:02]}  e5 {[%clk 0:02:51]} 10. Rf1 {[%clk 0:02:59]}  Nc6 {[%clk 0:02:50]} 11. c3 {[%clk 0:02:58]}  Re8 {[%clk 0:02:47]} 12. Qg3 {[%clk 0:02:56]}  Ne7 {[%clk 0:02:41]} 13. Nd2 {[%clk 0:02:54]}  Qd7 {[%clk 0:02:22]} 14. e4 {[%clk 0:02:48]}  exd4 {[%clk 0:02:18]} 15. cxd4 {[%clk 0:02:48]}  Nh5 {[%clk 0:02:18]} 16. Qf2 {[%clk 0:02:44]}  Nc6 {[%clk 0:02:13]} 17. Nf3 {[%clk 0:02:38]}  Nf6 {[%clk 0:02:09]} 18. Qh4 {[%clk 0:02:36]}  Nb4 {[%clk 0:02:03]} 19. Bb1 {[%clk 0:02:31]}  Qc6 {[%clk 0:01:58]} 20. e5 {[%clk 0:02:28]}  dxe5 {[%clk 0:01:53]} 21. dxe5 {[%clk 0:02:28]}  Nh5 {[%clk 0:01:53]} 22. Qxb4 {[%clk 0:02:26]}  Bxe5 {[%clk 0:01:48]} 23. Nxe5 {[%clk 0:02:22]}  Rxe5 {[%clk 0:01:49]} 24. Qg4 {[%clk 0:01:35]}  Nf6 {[%clk 0:01:41]} 25. Qf3 {[%clk 0:01:32]}  Qxf3 {[%clk 0:01:40]} 26. gxf3 {[%clk 0:01:32]}  Re2 {[%clk 0:01:27]} 27. Bd3 {[%clk 0:01:30]}  Re5 {[%clk 0:01:22]} 28. Bf4 {[%clk 0:01:26]}  Rd5 {[%clk 0:01:21]} 29. Be4 {[%clk 0:01:24]}  Nxe4 {[%clk 0:01:04]} 30. fxe4 {[%clk 0:01:25]}  Rd4 {[%clk 0:01:04]} 31. Rae1 {[%clk 0:01:18]}  c5 {[%clk 0:01:03]} 32. Bh6 {[%clk 0:01:12]}  Re8 {[%clk 0:00:55]} 33. e5 {[%clk 0:01:11]}  Rh4 {[%clk 0:00:53]} 34. Bc1 {[%clk 0:01:06]}  c4 {[%clk 0:00:38]} 35. e6 {[%clk 0:01:02]}  fxe6 {[%clk 0:00:33]} 36. fxe6 {[%clk 0:01:00]}  Rg4+ {[%clk 0:00:30]} 37. Kh1 {[%clk 0:00:59]}  Rd4 {[%clk 0:00:29]} 38. Bg5 {[%clk 0:00:52]}  Rd6 {[%clk 0:00:27]} 39. e7 {[%clk 0:00:51]}  Rd5 {[%clk 0:00:28]} 40. Bh6 {[%clk 0:00:50]}  Rf5 {[%clk 0:00:24]} 41. Rxf5 {[%clk 0:00:48]}  gxf5 {[%clk 0:00:25]} 42. Bg5 {[%clk 0:00:47]}  Kf7 {[%clk 0:00:26]} 43. Kg2 {[%clk 0:00:46]}  b5 {[%clk 0:00:21]} 44. Kf3 {[%clk 0:00:46]}  a5 {[%clk 0:00:21]} 45. Kf4 {[%clk 0:00:46]}  b4 {[%clk 0:00:21]} 46. Kxf5 {[%clk 0:00:45]}  c3 {[%clk 0:00:21]} 47. bxc3 {[%clk 0:00:46]}  bxc3 {[%clk 0:00:22]} 48. Rc1 {[%clk 0:00:44]}  Rc8 {[%clk 0:00:22]} 49. Rc2 {[%clk 0:00:44]}  Rc5+ {[%clk 0:00:21]} 50. Kg4 {[%clk 0:00:44]}  Rc4+ {[%clk 0:00:21]} 51. Kh5 {[%clk 0:00:44]}  Rc5 {[%clk 0:00:14]} 52. Rf2+ {[%clk 0:00:43]} 1-0


[Site "https://www.chess.com"]

[Event "Titled Tuesday Blitz July 25 Early 2023"]
[White "TomLiu777"]
[Black "vishwa_vijeta"]
[WhiteElo "2395"]
[BlackElo "2557"]
[Result "0-1"]
[Round "8"]
[TimeControl "180+2"]
[Date "2023.07.25"]
[WhiteClock "0:00:00"]
[BlackClock "0:00:03"]
[Board "88"]

1. c4 {[%clk 0:03:00]}  c5 {[%clk 0:02:51]} 2. Nc3 {[%clk 0:03:00]}  g6 {[%clk 0:02:51]} 3. g3 {[%clk 0:03:00]}  Bg7 {[%clk 0:02:51]} 4. Bg2 {[%clk 0:03:01]}  Nc6 {[%clk 0:02:51]} 5. b3 {[%clk 0:03:01]}  e5 {[%clk 0:02:52]} 6. Bb2 {[%clk 0:02:59]}  Nge7 {[%clk 0:02:52]} 7. e3 {[%clk 0:02:59]}  d6 {[%clk 0:02:52]} 8. Nge2 {[%clk 0:03:00]}  O-O {[%clk 0:02:52]} 9. d3 {[%clk 0:03:00]}  f5 {[%clk 0:02:52]} 10. Kd2 {[%clk 0:03:00]}  Be6 {[%clk 0:02:52]} 11. Nd5 {[%clk 0:02:54]}  Rc8 {[%clk 0:02:48]} 12. h4 {[%clk 0:02:48]}  h5 {[%clk 0:02:21]} 13. Nec3 {[%clk 0:02:43]}  Nb4 {[%clk 0:02:13]} 14. Nxe7+ {[%clk 0:02:35]}  Qxe7 {[%clk 0:02:13]} 15. a3 {[%clk 0:02:34]}  Nc6 {[%clk 0:02:13]} 16. Nd5 {[%clk 0:02:34]}  Qf7 {[%clk 0:02:13]} 17. Qc2 {[%clk 0:02:25]}  Ne7 {[%clk 0:02:12]} 18. Nxe7+ {[%clk 0:02:16]}  Qxe7 {[%clk 0:02:13]} 19. Rae1 {[%clk 0:02:11]}  Qf7 {[%clk 0:02:00]} 20. f4 {[%clk 0:02:09]}  b6 {[%clk 0:01:49]} 21. Bc3 {[%clk 0:01:57]}  Rfd8 {[%clk 0:01:41]} 22. Kc1 {[%clk 0:01:47]}  b5 {[%clk 0:01:29]} 23. Rhf1 {[%clk 0:01:36]}  e4 {[%clk 0:01:26]} 24. dxe4 {[%clk 0:01:31]}  bxc4 {[%clk 0:01:25]} 25. bxc4 {[%clk 0:01:24]}  Bxc4 {[%clk 0:01:24]} 26. exf5 {[%clk 0:01:19]}  Bb3 {[%clk 0:00:58]} 27. Qd3 {[%clk 0:01:05]}  Bc4 {[%clk 0:00:28]} 28. Qc2 {[%clk 0:00:46]}  Bb3 {[%clk 0:00:21]} 29. Qd3 {[%clk 0:00:44]}  c4 {[%clk 0:00:21]} 30. Qd2 {[%clk 0:00:37]}  Qxf5 {[%clk 0:00:20]} 31. Bd5+ {[%clk 0:00:37]}  Kh7 {[%clk 0:00:20]} 32. e4 {[%clk 0:00:36]}  Qf8 {[%clk 0:00:17]} 33. f5 {[%clk 0:00:33]}  Bh6 {[%clk 0:00:11]} 34. Rf4 {[%clk 0:00:31]}  gxf5 {[%clk 0:00:09]} 35. exf5 {[%clk 0:00:26]}  Re8 {[%clk 0:00:09]} 36. Re6 {[%clk 0:00:25]}  Rxe6 {[%clk 0:00:09]} 37. Bxe6 {[%clk 0:00:20]}  Re8 {[%clk 0:00:09]} 38. Qd4 {[%clk 0:00:16]}  d5 {[%clk 0:00:07]} 39. Qxa7+ {[%clk 0:00:07]}  Re7 {[%clk 0:00:07]} 40. Qd4 {[%clk 0:00:06]}  Re8 {[%clk 0:00:06]} 41. Qa7+ {[%clk 0:00:06]}  Re7 {[%clk 0:00:06]} 42. Qd4 {[%clk 0:00:07]}  Rg7 {[%clk 0:00:07]} 43. Bb4 {[%clk 0:00:06]}  Qe8 {[%clk 0:00:04]} 44. Bxd5 {[%clk 0:00:04]}  Qe2 {[%clk 0:00:02]} 45. Qe4 {[%clk 0:00:02]}  Qxe4 {[%clk 0:00:01]} 46. Bxe4 {[%clk 0:00:02]}  Rxg3 {[%clk 0:00:02]} 47. f6+ {[%clk 0:00:02]}  Kg8 {[%clk 0:00:02]} 48. f7+ {[%clk 0:00:02]}  Kh8 {[%clk 0:00:02]} 49. f8=Q+ {[%clk 0:00:02]}  Bxf8 {[%clk 0:00:02]} 50. Rxf8+ {[%clk 0:00:03]}  Kg7 {[%clk 0:00:03]} 51. Rf5 {[%clk 0:00:03]}  Rg4 {[%clk 0:00:03]} 52. Rg5+ {[%clk 0:00:02]}  Rxg5 {[%clk 0:00:03]} 53. hxg5 {[%clk 0:00:03]}  h4 {[%clk 0:00:03]} 54. Be7 {[%clk 0:00:03]}  Kf7 {[%clk 0:00:03]} 55. Bc5 {[%clk 0:00:02]}  c3 {[%clk 0:00:03]} 56. Bd4 {[%clk 0:00:02]}  h3 {[%clk 0:00:03]} 57. Be5 {[%clk 0:00:03]}  Ke6 {[%clk 0:00:02]} 58. Bxc3 {[%clk 0:00:03]}  h2 {[%clk 0:00:02]} 59. Bb4 {[%clk 0:00:02]}  Bd5 {[%clk 0:00:02]} 60. Bxd5+ {[%clk 0:00:00]}  Kxd5 {[%clk 0:00:03]} 0-1


[Site "https://www.chess.com"]

[Event "Titled Tuesday Blitz July 25 Early 2023"]
[White "Andreev, Konstantin"]
[Black "Girinath, P.D.S."]
[WhiteFideId "24239305"]
[BlackFideId "5000572"]
[WhiteElo "2542"]
[BlackElo "2380"]
[Result "1-0"]
[Round "8"]
[TimeControl "180+2"]
[Date "2023.07.25"]
[WhiteClock "0:02:40"]
[BlackClock "0:01:40"]
[Board "89"]

1. e4 {[%clk 0:03:00]}  e6 {[%clk 0:02:52]} 2. d4 {[%clk 0:03:00]}  d5 {[%clk 0:02:52]} 3. Nc3 {[%clk 0:03:01]}  Nf6 {[%clk 0:02:51]} 4. e5 {[%clk 0:03:01]}  Nfd7 {[%clk 0:02:52]} 5. f4 {[%clk 0:03:01]}  c5 {[%clk 0:02:52]} 6. Nf3 {[%clk 0:03:02]}  Nc6 {[%clk 0:02:52]} 7. Be3 {[%clk 0:03:03]}  a6 {[%clk 0:02:51]} 8. Qd2 {[%clk 0:03:03]}  b5 {[%clk 0:02:51]} 9. Qf2 {[%clk 0:03:03]}  Qb6 {[%clk 0:02:49]} 10. a3 {[%clk 0:03:01]}  f5 {[%clk 0:02:30]} 11. exf6 {[%clk 0:02:42]}  Nxf6 {[%clk 0:02:28]} 12. dxc5 {[%clk 0:02:42]}  Bxc5 {[%clk 0:01:40]} 13. Bxc5 {[%clk 0:02:40]} 1-0


[Site "https://www.chess.com"]

[Event "Titled Tuesday Blitz July 25 Early 2023"]
[White "Yurtseven, Melih"]
[Black "Vujacic, Igor"]
[WhiteFideId "6312160"]
[BlackFideId "932620"]
[WhiteElo "2539"]
[BlackElo "2363"]
[Result "0-1"]
[Round "8"]
[TimeControl "180+2"]
[Date "2023.07.25"]
[WhiteClock "0:02:32"]
[BlackClock "0:02:15"]
[Board "90"]

1. d4 {[%clk 0:03:00]}  d5 {[%clk 0:02:58]} 2. Nf3 {[%clk 0:03:01]}  e6 {[%clk 0:02:59]} 3. Bf4 {[%clk 0:03:01]}  c5 {[%clk 0:02:58]} 4. e3 {[%clk 0:03:00]}  Nc6 {[%clk 0:02:58]} 5. Nbd2 {[%clk 0:03:00]}  Bd6 {[%clk 0:02:58]} 6. Ne5 {[%clk 0:02:54]}  cxd4 {[%clk 0:02:50]} 7. Nxc6 {[%clk 0:02:54]}  bxc6 {[%clk 0:02:48]} 8. Bxd6 {[%clk 0:02:55]}  Qxd6 {[%clk 0:02:34]} 9. exd4 {[%clk 0:02:55]}  Qb4 {[%clk 0:02:26]} 10. c3 {[%clk 0:02:48]}  Qxb2 {[%clk 0:02:25]} 11. Rb1 {[%clk 0:02:49]}  Qxc3 {[%clk 0:02:22]} 12. Rc1 {[%clk 0:02:49]}  Qxd4 {[%clk 0:02:20]} 13. Rxc6 {[%clk 0:02:50]}  Ne7 {[%clk 0:02:15]} 14. Rc7 {[%clk 0:02:32]}  Qe5+ {[%clk 0:02:15]} 0-1


[Site "https://www.chess.com"]